Cogmind - Beta 13 @@@ ROGUE MODE // 2024.05.27 @ 18:49:42 // Winter2022/Polymind Player: Phosphorus Result: Destroyed by as-71579 with Assembled Rifle Performance ------------- Evolutions (0) 0 Regions Visited (2) 400 Robots Destroyed (0) 0 Value Destroyed (0) 0 Prototype IDs (0) 0 Alien Tech Used (0) 0 Bonus (1140) 1140 TOTAL SCORE: 740 Bonus ------- Polymind Skill 1140 Cogmind --------- Core Integrity 0/250 Matter 100/100 Energy 50/50 System Corruption 5% Temperature Cool (0) Movement Core (50) Location -10/Mines Parts ------- > --- POWER (0) -------- (None) > --- PROPULSION (1) --- (None) > --- UTILITY (0) ------ (None) > --- WEAPON (1) ------- Assembled Maul > --- INVENTORY (1) ---- (None) Peak State ------------ > --- POWER ------------ Light Ion Engine > --- PROPULSION ------- Compact Wheel Compact Wheel > --- UTILITY ---------- Small Storage Unit Tractor Beam > --- WEAPON ----------- (None) > --- INVENTORY -------- (None) [Rating: 5] Favorites ----------- Power Light Ion Engine Engine Light Ion Engine Propulsion Compact Wheel Wheel Compact Wheel Hover Unit Assembled Hover Unit Utility Small Storage Unit Device Tractor Beam Storage Small Storage Unit Weapon Assembled Maul Impact Weapon Assembled Maul Build | -11 -10 -10 ------- Run | Yrd Mat Min Slots Evolved . | . . . Power . | . . . Propulsion . | . . . Utility . | . . . Weapon . | . . . Parts Attached . | . . . Power . | . . . Engine . | . . . Core . | . . . Reactor . | . . . Propulsion . | . . . Treads . | . . . Leg . | . . . Wheel . | . . . Hover . | . . . Flight . | . . . Utility . | . . . Device . | . . . Storage . | . . . Processor . | . . . Hackware . | . . . Protection . | . . . Artifact . | . . . Weapon . | . . . Energy Gun . | . . . Energy Cannon . | . . . Ballistic Gun . | . . . Ballistic Cannon . | . . . Launcher . | . . . Special Weapon . | . . . Impact Weapon . | . . . Slashing Weapon . | . . . Piercing Weapon . | . . . Special Melee Weapon . | . . . Unidentified Prototypes . | . . . Parts Lost 3 | . . 3 Power 1 | . . 1 Propulsion 1 | . . 1 Utility 1 | . . 1 Weapon . | . . . Highest Loss Streak 2 | . . 2 To Critical Strikes . | . . . Average Slot Usage (%) 90 | . 100 89 Engine 14 | . 20 13 Wheel 38 | . 40 37 Hover 2 | . . 2 Device 14 | . 20 13 Storage 19 | . 20 18 Impact Weapon 2 | . . 2 Naked Turns 1 | . . 1 Heaviest Build 9 | 9 9 9 Greatest Support 32 | 32 32 32 Greatest Overweight (x) . | . . . Average Overweight (x) . | . . . Largest Inventory Capacity 4 | 4 4 4 Average Capacity 3 | 2 4 3 Most Carried 4 | . 1 4 Average Carried . | . . 1 Final Capacity 4 | 4 4 1 Final Carried 1 | . 1 . Class Distribution -------------------- 94% | Recycler 5% | Knight Dominant Class ---------------- Recycler | -10/Materials Recycler | -10/Mines Resources | -11 -10 -10 ----------- Run | Yrd Mat Min Matter Collected . | . . . Remotely . | . . . Salvage Created 2 | . . 2 Parts . | . . . Haulers Intercepted . | . . . Recyclers Shooed . | . . . Parts Field Recycled . | . . . Retrieved Matter . | . . . Parts Self-Destructed . | . . . Prevented . | . . . Kills | -11 -10 -10 ------- Run | Yrd Mat Min Combat Hostiles Destroyed 1 | . . 1 Classes Destroyed 1 | . . 1 Assembled 1 | . . 1 Best Kill Streak 1 | . . 1 Combat Bots Only 1 | . . 1 Max Kills in Single Turn 1 | . . 1 Gunslinging . | . . . Exploded . | . . . Melee . | . . . Uniques/NPCs Destroyed . | . . . Combat | -11 -10 -10 -------- Run | Yrd Mat Min Hostile Shots Fired 54 | . . 54 Missed 23 | . . 23 Damage Taken 447 | . . 447 Core 260 | . . 260 Absorbed by Shields . | . . . Core Remaining (%) 100 | 100 . . Volleys Fired . | . . . Largest . | . . . Hottest . | . . . Shots Fired . | . . . Gun . | . . . Cannon . | . . . Launcher . | . . . Special . | . . . Kinetic . | . . . Thermal . | . . . Explosive . | . . . Electromagnetic . | . . . Robot Hit Streak . | . . . Robot Miss Streak . | . . . Penetration Max . | . . . Secondary Targets . | . . . Shots Hit Robots 4 | . . 4 Core Hits . | . . . Critical Kills . | . . . Critical Parts Destroyed . | . . . Critical Strikes . | . . . Melee Attacks 4 | . . 4 Impact 4 | . . 4 Slashing . | . . . Piercing . | . . . Sneak Attacks . | . . . Combat Hostiles . | . . . Follow-up Attacks . | . . . Damage Inflicted 155 | . . 155 Guns . | . . . Cannons . | . . . Explosions . | . . . Melee 155 | . . 155 Ramming . | . . . Kinetic . | . . . Thermal . | . . . Explosive . | . . . Electromagnetic . | . . . Impact 155 | . . 155 Slashing . | . . . Piercing . | . . . Highest Corruption 5 | . . 5 Average Corruption 5 | . . 5 Corruption Purged . | . . . Corruption Blocked . | . . . Overload Shots . | . . . Overflow Damage 23 | . . 23 Projectiles . | . . . Explosions . | . . . Melee 23 | . . 23 Knockbacks . | . . . Impact . | . . . Kinetic . | . . . Secondary . | . . . Self-Inflicted Damage . | . . . Shots . | . . . Rammed . | . . . Targets Rammed . | . . . Kicked . | . . . Crushed . | . . . Highest Temperature 39 | . . 39 Average Temperature 12 | . . 12 Received Heat Transfer 188 | . . 188 Siege Activations . | . . . Robots Corrupted . | . . . Combat Hostiles . | . . . Parts Fried . | . . . Impact Corruptions 3 | . . 3 Robots Melted . | . . . Combat Hostiles . | . . . Parts Melted . | . . . Heat Transferred . | . . . Parts Sabotaged . | . . . Parts Stolen . | . . . Parts Stripped . | . . . Power Chain Reactions . | . . . Alert | -11 -10 -10 ------- Run | Yrd Mat Min Peak Influence 45 | . . 45 Initial . | . . . Average 13 | . . 15 Maximum Alert Level . | . . . Low Security (%) 100 | 100 100 100 Level 1 . | . . . Level 2 . | . . . Level 3 . | . . . Level 4 . | . . . Level 5 . | . . . High Security . | . . . Max Security . | . . . Squads Dispatched . | . . . Investigation . | . . . Extermination . | . . . Reinforcement . | . . . Assault . | . . . Garrison . | . . . Intercept . | . . . Searches Triggered . | . . . Construction Impeded . | . . . Haulers Reinforced . | . . . Active Scanning Responses . | . . . Cargo Convoy Interrupts . | . . . Stealth | -11 -10 -10 --------- Run | Yrd Mat Min Distress Signals . | . . . Communications Jammed . | . . . Distress Signals . | . . . Times Spotted 29 | . . 29 Peak Tracking Total 18 | . . 18 Tactical Retreats 2 | . . 2 Traps | -11 -10 -10 ------- Run | Yrd Mat Min Traps Triggered . | . . . Indirectly . | . . . Trap Hack Attempts . | . . . Triggered . | . . . Disarmed . | . . . Reprogrammed . | . . . Reused 2 | . . 2 Traps Extracted . | . . . Installed 4 | . . 4 Triggered 2 | . . 2 Most Traps Carried 4 | . . 4 Machines | -11 -10 -10 ---------- Run | Yrd Mat Min Machines Disabled . | . . . Max in Single Turn . | . . . Machines Repaired . | . . . Machines Dismantled . | . . . Machines Sabotaged . | . . . Overloaded Fab Kills . | . . . Hacking | -11 -10 -10 --------- Run | Yrd Mat Min Machines Accessed 1 | . 1 . Terminals 1 | . 1 . Fabricators . | . . . Repair Stations . | . . . Recycling Units . | . . . Scanalyzers . | . . . Garrison Access . | . . . Total Hacks 1 | . 1 . Successful . | . . . Failed 1 | . 1 . Catastrophic 1 | . 1 . Database Lockouts . | . . . Manual 1 | . 1 . Terminals 1 | . 1 . Fabricators . | . . . Repair Stations . | . . . Recycling Units . | . . . Scanalyzers . | . . . Garrison Access . | . . . Terminal Hacks . | . . . Fabricator Hacks . | . . . Repair Station Hacks . | . . . Recycling Unit Hacks . | . . . Scanalyzer . | . . . Garrison Access Hacks . | . . . Unauthorized Hacks . | . . . Terminals . | . . . Fabricators . | . . . Repair Stations . | . . . Recycling Units . | . . . Scanalyzers . | . . . Garrison Access . | . . . Data Cores Recovered . | . . . Used . | . . . Hacking Detections 1 | . 1 . Full Trace Events . | . . . Feedback Events . | . . . Feedback Blocked . | . . . Robot Schematics Acquired . | . . . Robots Built . | . . . Authchips . | . . . Time . | . . . Total Robot Build Rating . | . . . Part Schematics Acquired . | . . . Parts Built . | . . . Authchips . | . . . Time . | . . . Total Part Build Rating . | . . . Parts Repaired . | . . . Time . | . . . Parts Recycled . | . . . Recycled Matter . | . . . Retrieved Matter . | . . . Retrieved Components . | . . . Parts Scanalyzed . | . . . Part Schematics Acquired . | . . . Parts Damaged . | . . . Bothacking | -11 -10 -10 ------------ Run | Yrd Mat Min Used RIF Installer . | . . . Robots Hacked . | . . . Non-combat . | . . . Combat . | . . . Robot Hacks Applied . | . . . Relay Couplers Released . | . . . Fabnet Peak Effective % . | . . . Robots Rewired . | . . . Allies Hacked . | . . . Hacks Repelled . | . . . Allies | -11 -10 -10 -------- Run | Yrd Mat Min Total Allies 3 | . . 3 Largest Group 3 | . . 3 Highest-Rated Group 40 | . . 40 Highest-Rated Ally 16 | . . 16 Total Orders . | . . . Ally Attacks 8 | . . 8 Total Damage 84 | . . 84 Kills 1 | . . 1 Allies Corrupted . | . . . Allies Melted . | . . . Intel | -11 -10 -10 ------- Run | Yrd Mat Min Robot Analysis Total 2 | 1 . 1 Derelict Logs Recovered 1 | . . 1 Drone Launches . | . . . Drone Recoveries . | . . . Exploration | -11 -10 -10 ------------- Run | Yrd Mat Min Turns Passed 434 | 15 58 361 Spaces Moved 426 | 22 58 346 Core 15 | 13 . 2 Treads . | . . . Legs . | . . . Wheels 393 | 9 58 326 Hover 18 | . . 18 Flight . | . . . Fastest Speed 50 | 50 100 50 Average Speed 96 | 70 100 97 Slowest Speed 100 | 100 100 100 Overloaded Moves . | . . . Propulsion Burnouts . | . . . Robots Hopped . | . . . Cave-ins Triggered . | . . . Exploration Rate (%) 34 | 3 17 84 Regions Visited 2 Branch Regions 1 Pre-discovered Areas . | . . . Known Exits Taken . | . . . Unknown Exits Taken 2 | 1 1 . Scrap Searched 1 | . . 1 Spaces Dug . | . . . Terrain Destroyed . | . . . Melee . | . . . Projectile . | . . . AOE . | . . . Terrain Rammed . | . . . Walls Destroyed . | . . . Machines Disabled . | . . . Actions | -11 -10 -10 --------- Run | Yrd Mat Min Total 443 | 21 58 364 Wait 1 | . . 1 Move 424 | 21 57 346 Hop . | . . . Pick Up 5 | . 1 4 Fast Attach . | . . . Attach . | . . . Detach . | . . . Swap . | . . . Drop 5 | . . 5 Fire . | . . . Melee 4 | . . 4 Ram . | . . . Kick . | . . . Crush . | . . . Escape Stasis . | . . . Rewire . | . . . Trap 4 | . . 4 Miscellaneous . | . . . Route ------- -11/Scrapyard -10/Materials -10/Mines (discovered 2 exits: [*Mat x2]) History --------- Turn | Location | Event 5 | -11/Scrapyard | Discovered new exit (range 14) 16 | -11/Scrapyard | Entered Materials 66 | -10/Materials | Discovered new exit (range 9) 74 | -10/Materials | Entered Mines 122 | -10/Mines | Discovered new exit (range 8) 216 | -10/Mines | Discovered new exit (range 9) 236 | -10/Mines | Found a hidden stash of uninstalled traps 354 | -10/Mines | Assisted by bots powering up and referring to "LRC-V3" 377 | -10/Mines | Learned Materials security intel 378 | -10/Mines | Assembled infested the area 383 | -10/Mines | Assisted by a Guerilla fighting off Assembled 412 | -10/Mines | Core integrity fell below 50% 432 | -10/Mines | Core integrity fell below 20% 433 | -10/Mines | Lost 4 allies 435 | -10/Mines | Destroyed by as-71579 with Assembled Rifle Last Messages --------------- 00392_ Trooper 1b destroyed. 00392_ as-02218 destroyed. 00393_ HV Slug penetrates Wall. 00412_ Released control of R-06 Scavenger. 00413_ R-06 Scavenger reactivates. 00413_ R-06 Scavenger collects Lgt. Ion Engine. 00413_ Took control of as-80466. 00413_ Extracted analysis data for Assembled. 00414_ R-06 Scavenger destroyed. 00424_ Destroyed Asb. Hover Unit. 00424_ as-91319 system corrupted by crushing effect. 00424_ as-91319 IFF system glitched. 00425_ as-91319 system terminally corrupted. 00430_ Destroyed Asb. Hover Unit. 00430_ as-91213 system corrupted by crushing effect. 00433_ Destroyed Asb. Hover Unit. 00433_ as-50970 system corrupted by crushing effect. 00433_ Asb. Hover Unit destroyed. 00433_ System corrupted by crushing effect (+5). 00435_ as-91213 destroyed. Map ----- +----------------------------------------------------+ | ??????????????????????????###??????? | | ?????????????????????????# ###????? | | ????????????????????????? ##???? | | ######??????????????????? #???? | | #??????????????????? #???? | | #??????????????????? ????? | | #?????????????????## #????? | | """ #?????????????????# #?????? | | """ #?????????????????# #?????? | | """ #?????????????????# ##????? | | #?????????????????# ##???? | | ## ###?????????????#####%! ##??? | | ?# ####???????????## !%* ##?? | | ?# #??????????## #?? | | ?### #??????????# #?? | | ???# ############ #?? | | ???# " ##?? | | #### ############# ####??? | | =%*=*%#??????????# #####?????? | | ###"=%==#????????## ##?????????? | | #?#=%[!%#???????## ##??????????? | | #?##%%% #?????### #???????????? | | #??# #????## #????###????? | | #??#% %##????# ##?## ##???? | | #??# #????# a### #???? | | #??## #??# ####### %a #??? | | #????#% ?# #??????##aa #??? | | #????? #????????# a #??? | | #????? ?????????# #??? | | ??????# ??????????# ##??? | | ???????? ???????????## ##???? | | ???????!???????????????## ###????? | | ??????=%=???????????????#####??????? | | ???????????????????????????????????? | | ???????????????????????????????????? | | ???????????????????????????????????? | | ???????????????????????????????????? | | ???????????????????????????????????? | | ???????????????????????????????????? | | ???????????????????????????????????? | | ???????????????????????????????????? | | ???????????????????????????????????? | | ???###?????????????????????????????? | | ??? #?????????????????????????????? | | ???# #????????????###??????????????? | | #### ##??????????# #??????????????? | | #??????#### #????????######? | | ##### #?????## #????????# #? | | ????# ####### #?????????# #? | | ????# %! #??######## #? | +----------------------------------------------------+ Best States ------------- Heat Dissipation 35 Energy Generation 20 Energy Capacity 50 Matter Stores 100 Matter Capacity 100 Sight Range 16 Terrain Scan Density 10 Evasion (%) 53 Item Schematics ----------------- None Robot Schematics ------------------ None Fabricated ------------ Nothing Alien Tech Used ----------------- None Achievements -------------- None Challenges ------------ None Polymind | -11 -10 -10 ---------- Run | Yrd Mat Min Hosts 2 | 1 . 1 Combat Hostiles 1 | . . 1 Allies . | . . . Unique Host Classes 2 | 1 . 1 Average Host Suspicion 61 | 1 16 69 Unsuspicious Activity 50 | 2 . 48 Returns to Shadow . | . . . Fuzzy Dispatches . | . . . Protomatter Created 35 | . . 35 Used 21 | 5 . 16 Decayed 12 | . . 12 Highest Spend 16 | 5 . 16 Top 5 Hosts by Kills: as-80466 (-10/Mines: 1) Game ------ Seed ServoAnalysisGreatsword Manual? 0 Play Time 00:07:18 Cumulative 140.5 hours Start 2024.05.27 @ 18:37:06 End 2024.05.27 @ 18:49:42 Sessions 1 Manual Loads 0 Difficulty Rogue Special Mode Winter2022/Polymind Game No. 75 Rogue 75 Adventurer 0 Explorer 0 Win Type - Total 5 Types 2/0/1/1/0/0/0/1/0 Lore% 82 Gallery% 74 Achievement% 62 Wizard Run 0 Options --------- Layout 0 ASCII 0 Keyboard 1 Movement Numpad Keybinds 0 Fullscreen 1 Font 18/SmallcapsGlow Map View 76x50 Zoom Use 0% Tactical HUD 1 Map Filters NONE Filters NONE Steam 1 RUN: 36abe3dc-4ee9-48c2-a93f-3d1736367b97